bitfinex-derivatives/quotes_SOLF0:USTF0_20230904
["timestamp","ask_amount","ask_price","bid_price","bid_amount"]
[1693862403630,123.71,19.346,19.333,20.4986]
[1693862405035,135.9995,19.347,19.335,123.71]
[1693862405434,135.9995,19.347,19.336,22.0869]
[1693862412742,123.71,19.347,19.336,22.0869]
[1693862412941,111.38,19.344,19.337,111.38]
[1693862423248,111.38,19.343,19.336,111.38]
[1693862442756,111.38,19.337,19.331,22.0778]
[1693862442955,111.38,19.337,19.329,111.38]
[1693862444361,15.51,19.336,19.329,111.38]
[1693862453169,15.51,19.336,19.321,126.08790178]
[1693862453170,111.38,19.336,19.328,111.38]
[1693862460778,15.52,19.334,19.327,111.38]
[1693862461774,111.38,19.335,19.327,111.38]
[1693862461976,15.52,19.334,19.327,111.38]
[1693862462370,111.38,19.335,19.327,111.38]
[1693862463177,111.38,19.334,19.327,111.38]
[1693862467484,111.38,19.334,19.321,22.0778]
[1693862467682,15.52,19.33,19.323,111.38]
[1693862467887,111.38,19.325,19.317,111.38]
[1693862468185,0.22727272,19.338,19.315,22.24516635]
[1693862468381,0.22727272,19.338,19.316,9.50894448]
[1693862468382,111.38,19.324,19.316,9.50894448]
[1693862470090,111.38,19.324,19.315,133.62516635]
[1693862470385,111.38,19.324,19.316,9.50896884]
[1693862482097,111.38,19.326,19.318,111.38]
[1693862483289,111.38,19.327,19.319,111.38]
[1693862493302,111.38,19.326,19.318,111.38]
[1693862503102,111.38,19.326,19.316,21.0802814]
[1693862503306,111.38,19.325,19.317,111.38]
[1693862505805,111.38,19.322,19.314,131.653]
[1693862506007,111.38,19.322,19.314,111.38]
[1693862508412,111.38,19.318,19.31,111.38]
[1693862508614,111.38,19.318,19.311,9.51200782]
[1693862509913,111.38,19.318,19.3,71.95879157]
[1693862509914,15.52,19.315,19.307,111.38]
[1693862510110,111.38,19.313,19.304,111.38]
[1693862513015,111.38,19.31,19.301,111.38]
[1693862513216,111.38,19.31,19.302,9.51578068]
[1693862514014,15.54,19.309,19.302,9.51578068]
[1693862515215,111.38,19.31,19.302,9.51578068]
[1693862516018,111.38,19.31,19.303,9.51578068]
[1693862516220,111.38,19.31,19.301,111.38]
[1693862516419,111.38,19.31,19.302,9.5157345]
[1693862519514,111.38,19.312,19.303,111.38]
[1693862520219,111.38,19.311,19.303,111.38]
[1693862521319,111.38,19.311,19.304,9.51559844]
[1693862521620,111.38,19.311,19.303,111.38]
[1693862522818,111.38,19.311,19.304,9.51560261]
[1693862525321,111.38,19.311,19.303,111.38]
[1693862525519,111.38,19.311,19.304,9.51557227]
[1693862526321,111.38,19.311,19.303,111.38]
[1693862527422,111.38,19.311,19.304,9.51562207]
[1693862528124,111.38,19.314,19.306,111.38]
[1693862533520,111.38,19.317,19.308,111.38]
[1693862536119,111.38,19.319,19.311,111.38]
[1693862537422,111.38,19.319,19.303,0.32913583]
[1693862537423,111.38,19.322,19.314,111.38]
[1693862544026,111.38,19.32,19.304,0.32913583]
[1693862544323,111.38,19.32,19.312,111.38]
[1693862545926,111.38,19.32,19.3,0.32913583]
[1693862545927,111.38,19.317,19.3,0.32913583]
[1693862546125,111.38,19.317,19.309,111.38]
[1693862546427,15.53,19.323,19.305,111.38]
[1693862546428,111.38,19.314,19.305,111.38]
[1693862546727,111.38,19.314,19.306,9.51290632]
[1693862551130,111.38,19.315,19.307,111.38]
[1693862553235,111.38,19.318,19.31,111.38]
[1693862554134,15.53,19.32,19.313,111.38]
[1693862555532,111.38,19.321,19.313,111.38]
[1693862555727,15.53,19.323,19.316,111.38]
[1693862557430,15.53,19.326,19.32,111.38]
[1693862557833,111.38,19.33,19.322,111.38]
[1693862561639,111.38,19.332,19.325,111.38]
[1693862562232,126.91,19.336,19.328,111.38]
[1693862562738,111.38,19.336,19.328,111.38]
[1693862568335,111.38,19.338,19.331,111.38]
[1693862568944,111.38,19.343,19.335,111.38]
[1693862572340,15.53,19.344,19.339,111.38]
[1693862572850,111.38,19.347,19.339,111.38]
[1693862573051,123.73,19.349,19.336,123.73]
[1693862577454,123.73,19.351,19.338,123.73]
[1693862589756,123.73,19.351,19.34,123.73]
[1693862593260,123.73,19.351,19.338,123.73]
[1693862597865,12.2756,19.354,19.329,0.32913583]
[1693862598071,111.36,19.348,19.341,111.36]
[1693862601071,111.36,19.348,19.33,22.11842105]
[1693862601271,111.36,19.348,19.341,111.36]
[1693862603278,111.36,19.349,19.342,111.36]
[1693862605782,12.2756,19.354,19.342,111.36]
[1693862605979,111.36,19.349,19.342,111.36]
[1693862611383,111.36,19.351,19.343,111.36]
[1693862613885,15.51,19.349,19.342,111.36]
[1693862617293,15.51,19.352,19.345,111.36]
[1693862618791,15.51,19.355,19.349,111.36]
[1693862619902,15.51,19.355,19.35,111.36]
[1693862620393,15.51,19.355,19.353,111.36]
[1693862620795,15.51,19.355,19.354,111.36]
[1693862620995,27.48034009,19.356,19.354,111.36]
[1693862621201,27.48034009,19.356,19.355,111.36]
[1693862622896,42.99034009,19.356,19.355,111.36]
[1693862623293,42.99034009,19.356,19.331,0.32913583]
[1693862623294,15.51,19.355,19.353,111.36]
[1693862623598,126.87,19.361,19.353,111.36]
[1693862624100,111.36,19.361,19.353,111.36]
[1693862633310,15.51,19.361,19.354,111.36]
[1693862643216,15.5,19.364,19.358,111.36]
[1693862645611,290.15775087,19.376,19.349,21.2109]
[1693862645612,111.36,19.363,19.349,21.2109]
[1693862645813,111.36,19.363,19.355,111.36]
[1693862649716,15.5,19.364,19.358,111.36]
[1693862652419,111.36,19.365,19.358,111.36]
[1693862652621,111.36,19.37,19.363,111.36]
[1693862653324,111.36,19.368,19.361,111.36]
[1693862663134,111.36,19.37,19.362,111.36]
[1693862671335,15.49,19.389,19.347,21.4742]
[1693862671533,12.2141,19.382,19.371,111.36]
[1693862671729,12.2141,19.382,19.348,236.97590761]
[1693862671730,123.5741,19.382,19.374,111.36]
[1693862671934,111.36,19.382,19.374,111.36]
[1693862673034,15.49,19.382,19.375,111.36]
[1693862677341,15.49,19.382,19.354,0.32913583]
[1693862677342,15.49,19.385,19.378,111.36]
[1693862677538,15.49,19.387,19.381,111.36]
[1693862680146,15.49,19.387,19.382,111.36]
[1693862681644,15.49,19.387,19.384,111.36]
[1693862683246,15.49,19.387,19.382,111.36]
[1693862684643,15.49,19.387,19.371,0.32913583]
[1693862684644,111.36,19.387,19.379,111.36]
[1693862685043,111.36,19.384,19.376,111.36]
[1693862685541,111.36,19.386,19.378,111.36]
[1693862685747,15.49,19.382,19.378,111.36]
[1693862693157,15.49,19.382,19.377,111.36]
[1693862695357,15.49,19.382,19.375,111.36]
[1693862696853,131.7274,19.383,19.375,111.36]
[1693862698363,111.36,19.385,19.378,111.36]
[1693862698656,15.48,19.387,19.381,111.36]
[1693862699463,111.36,19.388,19.381,111.36]
[1693862699651,15.48,19.389,19.383,111.36]
[1693862701660,126.84,19.389,19.382,111.36]
[1693862703157,111.36,19.387,19.379,111.36]
[1693862712069,31.1507256,19.392,19.37,0.06287404]
[1693862712070,111.36,19.384,19.376,111.36]
[1693862713260,111.36,19.382,19.374,111.36]
[1693862716166,15.48,19.391,19.377,111.36]
[1693862716466,111.36,19.387,19.38,111.36]
[1693862722470,36.4309,19.391,19.383,111.36]
[1693862722671,15.48,19.389,19.383,111.36]
[1693862723274,20.9509,19.391,19.383,111.36]
[1693862723475,132.3109,19.391,19.383,111.36]
[1693862725371,111.36,19.391,19.383,111.36]
[1693862731680,15.48,19.391,19.385,111.36]
[1693862733976,111.36,19.392,19.385,111.36]
[1693862741187,111.36,19.392,19.386,277.43175278]
[1693862743193,111.36,19.393,19.386,388.79175278]
[1693862743392,111.36,19.393,19.386,111.36]
[1693862759301,111.36,19.393,19.387,277.42826578]
[1693862761801,111.36,19.392,19.387,277.42826578]
[1693862761998,111.36,19.392,19.388,277.42239068]
[1693862762204,132.0421802,19.395,19.389,277.42239068]
[1693862762508,20.6821802,19.395,19.391,111.36]
[1693862762714,20.6821802,19.395,19.392,277.42239068]
[1693862764606,21.4549,19.397,19.392,277.42239068]
[1693862765007,111.36,19.398,19.392,277.42239068]
[1693862770914,111.36,19.398,19.391,111.36]
[1693862773118,111.36,19.4,19.391,111.36]
[1693862774115,111.36,19.397,19.389,111.36]
[1693862774316,111.36,19.397,19.39,277.39391032]
[1693862778828,111.36,19.397,19.389,111.36]
[1693862779124,111.36,19.397,19.39,277.39216356]
[1693862782522,111.36,19.397,19.389,111.36]
[1693862782728,111.36,19.394,19.386,111.36]
[1693862782929,111.36,19.394,19.387,277.40820293]
[1693862794728,15.47,19.395,19.388,111.36]
[1693862794929,15.47,19.395,19.389,277.40820293]
[1693862798531,111.36,19.396,19.389,277.40820293]
[1693862798733,24.04841024,19.401,19.391,111.36]
[1693862798734,111.36,19.398,19.391,111.36]
[1693862798932,111.36,19.398,19.392,277.40820293]
[1693862812341,111.36,19.398,19.392,277.46820293]
[1693862813141,15.47,19.398,19.392,277.46820293]
[1693862822247,15.47,19.398,19.393,277.40820293]
[1693862822447,15.47,19.398,19.394,277.40820293]
[1693862822652,15.47,19.398,19.395,277.40820293]
[1693862822852,15.47,19.398,19.396,277.40820293]
[1693862823153,111.36,19.397,19.392,0.06]
[1693862833251,111.36,19.4,19.392,111.42]
[1693862833454,111.36,19.4,19.393,277.38058588]
[1693862842868,111.36,19.4,19.393,388.74058588]
[1693862843066,111.36,19.4,19.394,277.38058588]
[1693862843268,15.47,19.398,19.394,277.38058588]
[1693862843463,15.47,19.398,19.395,277.38058588]
[1693862843668,15.47,19.398,19.396,277.38058588]
[1693862843968,15.47,19.398,19.397,277.38058588]
[1693862844466,15.47,19.398,19.393,277.38058588]
[1693862844666,15.47,19.398,19.394,277.38058588]
[1693862844969,15.47,19.398,19.395,277.38058588]
[1693862845268,15.47,19.398,19.396,277.38058588]
[1693862845468,15.47,19.398,19.397,277.38058588]
[1693862845968,15.47,19.398,19.393,277.38058588]
[1693862848568,111.36,19.399,19.393,277.38058588]
[1693862848967,15.47,19.398,19.393,277.38058588]
[1693862849271,24.04841024,19.401,19.393,277.38058588]
[1693862849272,15.47,19.395,19.393,277.38058588]
[1693862849465,15.47,19.395,19.389,277.38058588]
[1693862849661,15.47,19.395,19.39,277.38058588]
[1693862849862,15.47,19.395,19.391,277.38058588]
[1693862850068,15.47,19.395,19.392,277.38058588]
[1693862850270,15.47,19.395,19.393,277.38058588]
[1693862850467,15.47,19.395,19.394,277.38058588]
[1693862850666,15.47,19.395,19.389,277.38058588]
[1693862850971,15.47,19.395,19.39,277.38058588]
[1693862851165,15.47,19.395,19.391,277.38058588]
[1693862851366,15.47,19.395,19.392,277.37171218]
[1693862851672,15.47,19.395,19.393,277.37171218]
[1693862851867,15.47,19.395,19.394,277.37171218]
[1693862852362,15.47,19.395,19.389,277.37171218]
[1693862855066,111.36,19.396,19.389,277.37171218]
[1693862862679,15.47,19.395,19.389,277.37171218]
[1693862863279,15.47,19.395,19.389,388.73171218]
[1693862863580,15.47,19.395,19.39,277.37171218]
[1693862872389,15.47,19.395,19.391,277.33548874]
[1693862872585,15.47,19.395,19.392,277.33548874]
[1693862872882,15.47,19.395,19.389,111.36]
[1693862872883,15.47,19.395,19.393,277.33548874]
[1693862873188,15.47,19.395,19.394,277.33548874]
[1693862873383,15.47,19.395,19.389,277.33548874]
[1693862873584,15.47,19.395,19.39,277.33548874]
[1693862873786,15.47,19.395,19.391,277.33548874]
[1693862874088,15.47,19.395,19.392,277.33548874]
[1693862874279,15.47,19.395,19.393,277.33548874]
[1693862874479,15.47,19.395,19.394,277.33548874]
[1693862875081,15.47,19.395,19.389,277.33548874]
[1693862875285,15.47,19.395,19.39,277.33548874]
[1693862875482,15.47,19.395,19.391,277.33548874]
[1693862875682,15.47,19.395,19.392,277.33548874]
[1693862875885,15.47,19.395,19.393,277.33548874]
[1693862876085,15.47,19.395,19.394,277.33548874]
[1693862876489,15.47,19.395,19.389,277.33548874]
[1693862876688,15.47,19.395,19.39,277.33548874]
[1693862876990,15.47,19.395,19.391,277.33548874]
[1693862877190,15.47,19.395,19.392,277.33548874]
[1693862877384,15.47,19.395,19.393,277.33548874]
[1693862877580,15.47,19.395,19.394,277.33548874]
[1693862878087,15.47,19.395,19.389,277.33548874]
[1693862878390,15.47,19.395,19.39,277.33548874]
[1693862878584,15.47,19.395,19.391,277.33548874]
[1693862878781,15.47,19.395,19.392,277.33548874]
[1693862878980,15.47,19.395,19.393,277.33548874]
[1693862879191,15.47,19.395,19.394,277.33548874]
[1693862879386,15.47,19.395,19.389,277.33548874]
[1693862879594,15.47,19.395,19.39,277.33548874]
[1693862879897,15.47,19.395,19.391,277.33548874]
[1693862880095,15.47,19.395,19.392,277.33548874]
[1693862880284,15.47,19.395,19.393,277.33548874]
[1693862880487,865.0,19.4,19.394,276.61556318]
[1693862880792,111.36,19.395,19.379,111.36]
[1693862880984,111.36,19.391,19.382,111.36]
[1693862882296,15.47,19.391,19.384,111.36]
[1693862883299,15.47,19.392,19.385,111.36]
[1693862890501,20.2078,19.394,19.388,111.36]
[1693862890703,15.47,19.395,19.388,111.36]
[1693862893101,111.36,19.395,19.386,111.36]
[1693862899097,0.06279624,19.394,19.386,111.36]
[1693862900604,0.06279624,19.394,19.387,277.41400413]
[1693862903102,0.06279624,19.394,19.388,111.36]
[1693862903307,0.06279624,19.394,19.389,277.41400413]
[1693862903911,0.06279624,19.394,19.39,0.12561759]
[1693862913824,0.06279624,19.394,19.39,277.48625618]
[1693862914023,0.06279624,19.394,19.391,277.36063859]
[1693862914221,0.06279624,19.394,19.392,277.36063859]
[1693862914522,0.06279624,19.394,19.393,277.36063859]
[1693862914818,0.06279624,19.394,19.39,277.48625618]
[1693862928630,111.36,19.396,19.39,277.36063859]
[1693862932122,111.36,19.396,19.389,111.36]
[1693862932320,111.36,19.396,19.39,277.35827574]
[1693862933232,111.36,19.396,19.394,0.06279623]
[1693862942438,126.83,19.398,19.394,0.06279623]
[1693862958052,15.47,19.395,19.391,277.35827574]
[1693862958253,15.47,19.395,19.392,277.35827574]
[1693862958553,15.47,19.395,19.393,277.35827574]
[1693862958749,15.47,19.395,19.39,0.12561759]
[1693862963161,111.36,19.395,19.39,0.12561759]
[1693862963556,111.36,19.395,19.39,277.53575399]
[1693862963860,111.36,19.395,19.391,277.4101364]
[1693862964160,111.36,19.395,19.392,277.4101364]
[1693862964358,111.36,19.395,19.39,0.12561759]
[1693862973171,15.47,19.392,19.39,0.12561759]
[1693862990585,111.36,19.391,19.39,0.12561759]
[1693862991487,111.36,19.391,19.39,277.53779616]
[1693862992384,111.36,19.391,19.39,0.12561759]
[1693863016511,111.36,19.391,19.383,277.41217857]
[1693863016710,111.36,19.388,19.384,277.41217857]
[1693863016910,111.36,19.388,19.385,277.41217857]
[1693863017112,111.36,19.388,19.386,277.41217857]
[1693863017412,111.36,19.388,19.387,277.41217857]
[1693863017614,111.36,19.388,19.381,277.41217857]
[1693863024524,111.36,19.388,19.386,0.18846409]
[1693863028433,111.36,19.391,19.386,0.18846409]
[1693863031435,111.36,19.391,19.383,111.36]
[1693863039445,111.36,19.391,19.39,0.12561759]
[1693863043143,111.36,19.393,19.39,0.12561759]
[1693863046541,111.36,19.393,19.385,111.36]
[1693863051050,111.36,19.39,19.383,111.36]
[1693863051252,111.36,19.387,19.379,111.36]
[1693863053153,111.36,19.386,19.378,157.21905279]
[1693863054558,111.36,19.386,19.382,0.25133574]
[1693863061662,111.36,19.383,19.378,45.85905279]
[1693863062762,111.36,19.382,19.378,45.85905279]
[1693863063167,111.36,19.381,19.378,45.85905279]
[1693863068166,111.36,19.379,19.371,111.36]
[1693863068460,111.36,19.379,19.371,159.93425425]
[1693863069164,111.36,19.378,19.371,48.57425425]
[1693863069761,111.36,19.378,19.374,0.37715456]
[1693863071961,111.36,19.375,19.374,0.37715456]
[1693863077164,111.36,19.375,19.368,111.36]
[1693863082664,111.36,19.375,19.362,0.32913583]
[1693863082665,111.36,19.37,19.362,111.36]
[1693863083674,111.36,19.368,19.36,152.66055407]
[1693863083869,0.22727272,19.384,19.36,152.66055407]
[1693863083870,111.36,19.364,19.36,41.30055407]
[1693863085276,111.36,19.364,19.362,0.56607178]
[1693863088672,111.36,19.363,19.362,0.56607178]
[1693863091584,111.36,19.363,19.35,111.36]
[1693863091787,111.36,19.358,19.35,111.36]
[1693863093284,111.36,19.356,19.348,111.36]
[1693863093482,111.36,19.356,19.349,9.49301637]
[1693863093682,111.36,19.356,19.348,111.36]
[1693863094378,111.36,19.349,19.342,132.3555]
[1693863094582,111.36,19.347,19.339,159.8156299]
[1693863095086,111.36,19.347,19.34,9.49707931]
[1693863095386,111.36,19.346,19.34,9.49707931]
[1693863095681,111.36,19.346,19.339,48.4556299]
[1693863096384,111.36,19.343,19.339,48.4556299]
[1693863096983,111.36,19.341,19.333,111.36]
[1693863097186,111.36,19.341,19.333,120.86051574]
[1693863097381,111.36,19.341,19.333,111.36]
[1693863098388,111.36,19.338,19.33,111.36]
[1693863098585,111.36,19.338,19.331,9.50058735]
[1693863098993,111.36,19.335,19.331,9.50058735]
[1693863099190,111.36,19.335,19.329,9.50058735]
[1693863099385,111.36,19.335,19.331,1.07096248]
[1693863103187,111.36,19.333,19.331,1.07096248]
[1693863106598,111.36,19.333,19.326,111.36]
[1693863106800,111.36,19.333,19.327,9.50485682]
[1693863107799,111.36,19.336,19.328,111.36]
[1693863110304,111.36,19.333,19.325,158.0140619]
[1693863110500,111.36,19.333,19.326,9.5046429]
[1693863113202,111.36,19.334,19.326,120.8646429]
[1693863113406,111.36,19.334,19.331,0.56700705]
[1693863122607,111.36,19.334,19.326,111.36]
[1693863122811,111.36,19.334,19.327,9.50431495]
[1693863123009,111.36,19.332,19.327,9.50431495]
[1693863123208,111.36,19.332,19.328,9.50431495]
[1693863123413,111.36,19.332,19.325,46.98319773]
[1693863123717,111.36,19.332,19.326,9.504335]
[1693863127016,15.52,19.344,19.325,46.6540619]
[1693863127017,111.36,19.329,19.325,46.6540619]
[1693863129224,111.36,19.326,19.318,111.36]
[1693863129423,111.36,19.323,19.319,9.50513131]
[1693863129626,111.36,19.323,19.32,9.50513131]
[1693863129826,111.36,19.323,19.319,0.75646401]
[1693863130224,111.36,19.323,19.32,9.50878969]
[1693863133125,111.36,19.322,19.32,9.50878969]
[1693863139027,111.36,19.322,19.316,30.78027166]
[1693863139232,111.36,19.322,19.317,9.50825818]
[1693863140532,111.36,19.325,19.317,120.86825818]
[1693863140732,111.36,19.325,19.318,9.50825818]
[1693863143239,111.36,19.322,19.318,9.50825818]
[1693863143439,111.36,19.322,19.317,9.50825818]
[1693863143643,111.36,19.322,19.319,0.75646392]
[1693863143841,111.36,19.322,19.32,9.50825818]
[1693863146442,15.52,19.334,19.32,9.50825818]
[1693863146443,111.36,19.325,19.32,9.50825818]
[1693863147939,111.36,19.325,19.319,0.75646392]
[1693863148146,111.36,19.325,19.32,9.50802971]
[1693863148643,111.36,19.325,19.319,0.75646392]
[1693863152845,111.36,19.325,19.318,111.36]
[1693863153347,111.36,19.323,19.316,142.14027166]
[1693863155945,111.36,19.326,19.319,111.36]
[1693863157652,111.36,19.326,19.323,0.69328629]
[1693863158052,111.36,19.332,19.325,111.36]
[1693863163954,132.209,19.334,19.327,111.36]
[1693863165058,111.36,19.332,19.324,111.36]
[1693863173167,111.36,19.333,19.325,111.36]
[1693863177068,111.36,19.33,19.323,0.69328629]
[1693863177269,111.36,19.33,19.323,112.05328629]
[1693863180979,111.36,19.327,19.323,0.69328629]
[1693863181178,111.36,19.324,19.32,0.32913583]
[1693863181379,111.36,19.322,19.319,0.75646392]
[1693863182681,111.36,19.322,19.315,111.36]
[1693863183276,111.36,19.324,19.317,111.36]
[1693863186377,111.36,19.322,19.314,111.36]
[1693863193279,20.147,19.323,19.317,111.36]
[1693863193877,111.36,19.325,19.317,111.36]
[1693863197785,111.36,19.323,19.315,111.36]
[1693863197984,126.88,19.323,19.315,111.36]
[1693863198377,111.36,19.32,19.312,111.36]
[1693863201387,15.52,19.323,19.311,32.14851561]
[1693863201388,111.36,19.317,19.311,32.14851561]
[1693863201583,111.36,19.317,19.308,111.36]
[1693863202382,111.36,19.313,19.304,111.36]
[1693863202588,111.36,19.313,19.305,9.51470863]
[1693863202892,111.36,19.311,19.301,111.36]
[1693863203686,111.36,19.308,19.299,111.36]
[1693863205885,111.36,19.311,19.302,111.36]
[1693863207889,124.21,19.313,19.299,124.21]
[1693863211092,124.21,19.313,19.3,9.51674384]
[1693863213293,124.21,19.311,19.3,9.51674384]
[1693863213488,124.21,19.311,19.301,9.51674384]
[1693863213694,124.21,19.311,19.298,153.70944637]
[1693863213889,124.21,19.311,19.308,0.06307586]
[1693863214893,124.21,19.314,19.308,0.06307586]
[1693863215393,15.54,19.315,19.308,0.06307586]
[1693863217996,124.21,19.316,19.308,0.06307586]
[1693863218396,15.54,19.318,19.308,0.06307586]
[1693863220498,124.21,19.319,19.308,0.06307586]
[1693863223802,20.6193,19.321,19.308,0.06307586]
[1693863224102,20.6193,19.321,19.312,124.21]
[1693863224299,124.21,19.325,19.312,152.40968288]
[1693863225803,124.21,19.326,19.314,124.21]
[1693863226402,124.21,19.329,19.317,124.21]
[1693863228099,20.076,19.333,19.324,124.21]
[1693863228606,124.21,19.336,19.324,124.21]
[1693863232008,124.21,19.339,19.327,124.21]
[1693863235404,145.0621,19.342,19.33,124.21]
[1693863235603,124.21,19.342,19.33,124.21]
[1693863238610,15.52,19.344,19.333,124.21]
[1693863241114,124.43727272,19.349,19.337,124.21]
[1693863241305,20.9609,19.348,19.337,124.21]
[1693863241706,124.21,19.349,19.337,124.21]
[1693863243205,124.21,19.351,19.338,124.21]
[1693863248217,124.21,19.348,19.332,22.1578]
[1693863248511,124.21,19.346,19.334,124.21]
[1693863253124,124.21,19.344,19.331,124.21]
[1693863254826,124.21,19.341,19.329,124.21]
[1693863255931,124.21,19.338,19.328,30.21801469]
[1693863261629,124.21,19.338,19.326,124.21]
[1693863267042,15.52,19.336,19.325,124.21]
[1693863267931,111.52,19.334,19.327,111.52]
[1693863270043,15.52,19.336,19.33,111.52]
[1693863270541,111.52,19.337,19.33,111.52]
[1693863272947,15.52,19.336,19.33,111.52]
[1693863278245,111.52,19.337,19.33,111.52]
[1693863279349,111.52,19.337,19.322,21.3014]
[1693863279546,111.52,19.337,19.33,111.52]
[1693863281950,15.52,19.336,19.33,111.52]
[1693863283154,111.52,19.336,19.329,111.52]
[1693863287149,111.52,19.339,19.332,111.52]
[1693863303078,111.52,19.34,19.333,111.52]
[1693863303276,111.52,19.342,19.335,111.52]
[1693863308381,15.52,19.339,19.333,111.52]
[1693863310483,111.52,19.342,19.335,111.52]
[1693863313284,15.52,19.339,19.333,111.52]
[1693863318989,15.52,19.336,19.329,111.52]
[1693863323091,15.52,19.33,19.323,111.52]
[1693863325486,111.52,19.328,19.321,111.52]
[1693863328091,111.52,19.326,19.318,111.52]
[1693863333198,111.52,19.325,19.317,111.52]
[1693863338894,111.52,19.319,19.311,111.52]
[1693863339101,15.53,19.318,19.311,111.52]
[1693863340700,15.53,19.318,19.309,21.6961]
[1693863340701,111.52,19.317,19.31,111.52]
[1693863343098,111.52,19.318,19.31,111.52]
[1693863343301,111.52,19.318,19.311,20.0825]
[1693863349408,111.52,19.318,19.308,32.56434077]
[1693863349409,111.52,19.323,19.315,111.52]
[1693863353207,111.52,19.325,19.318,111.52]
[1693863363121,111.52,19.324,19.317,111.52]
[1693863370731,15.53,19.339,19.317,111.52]
[1693863370933,111.52,19.324,19.317,111.52]
[1693863373135,111.52,19.326,19.319,111.52]
[1693863376130,20.3349,19.338,19.311,0.32913583]
[1693863376131,111.52,19.328,19.321,111.52]
[1693863377226,20.3349,19.338,19.321,111.52]
[1693863377528,111.52,19.331,19.325,111.52]
[1693863377733,111.52,19.331,19.325,139.7227564]
[1693863380038,111.52,19.334,19.325,28.2027564]
[1693863380236,111.52,19.334,19.327,111.52]
[1693863381038,111.52,19.336,19.329,111.52]
[1693863384742,111.52,19.339,19.332,111.52]
[1693863387737,111.52,19.339,19.326,21.0994]
[1693863387942,111.52,19.339,19.332,111.52]
[1693863388745,111.52,19.342,19.335,111.52]
[1693863392246,15.51,19.339,19.333,111.52]
[1693863393150,111.52,19.341,19.334,111.52]
[1693863403156,111.52,19.339,19.332,111.52]
[1693863412569,111.52,19.339,19.325,28.2027564]
[1693863412771,15.51,19.334,19.328,111.52]
[1693863418974,111.52,19.333,19.325,139.7227564]
[1693863420071,15.52,19.33,19.323,111.52]
[1693863423072,111.52,19.33,19.322,111.52]
[1693863423370,111.52,19.329,19.321,111.52]
[1693863433180,15.52,19.326,19.32,111.52]
[1693863434084,111.52,19.326,19.319,111.52]
[1693863434882,111.52,19.323,19.316,111.52]
[1693863437789,111.52,19.323,19.313,20.5966]
[1693863437984,111.52,19.323,19.316,111.52]
[1693863443293,15.52,19.32,19.313,111.52]
[1693863444088,111.52,19.323,19.316,111.52]
[1693863463206,111.52,19.323,19.315,111.52]